Cogmind - Beta 13 *** ADVENTURER MODE // 2024.05.31 @ 22:09:40 Player: AnotherZach Result: Destroyed by G-67 Veteran with Field Laser Performance ------------- Evolutions (5) 2500 Regions Visited (11) 2200 Robots Destroyed (173) 865 Value Destroyed (5353) 5353 Prototype IDs (10) 200 Alien Tech Used (0) 0 Bonus (2650) 2650 TOTAL SCORE: 13768 Bonus ------- High Alert Combat Kills 309 Follower Combat Kills 1672 A7 Reached Mainframe 300 Met R17 at Cetus 500 Friendly Fire -131 Cogmind --------- Core Integrity 0/1000 Matter 255/300 Energy 95/100 System Corruption 0% Temperature Cool (9) Movement Core (50) Location -5/Factory Parts ------- > --- POWER (2) -------- (None) > --- PROPULSION (4) --- (None) > --- UTILITY (8) ------ Improved Target Analyzer Advanced Hacking Suite Advanced System Shield > --- WEAPON (3) ------- Spear > --- INVENTORY (5) ---- Advanced Cooling System Stasis Canceller Improved Dynamic Insulation System High-powered Shock Rifle Peak State ------------ > --- POWER ------------ Reinforced Deuterium Engine Quantum Reactor > --- PROPULSION ------- Centrium Heavy Treads Centrium Heavy Treads > --- UTILITY ---------- Advanced Heat Sink Advanced Heat Sink Large Storage Unit Targeting Computer Centrium Medium Armor Plating Centrium Medium Armor Plating > --- WEAPON ----------- Wave Gun Advanced Variable Charge Gun KE Penetrator > --- INVENTORY -------- Reinforced Deuterium Engine Improved Treads Centrium Heavy Treads High-capacity Matter Pod Improved Medium Armor Plating Medium Reflective Plating Improved Hacking Suite Improved System Shield Improved System Shield Improved System Shield Improved System Shield Plasma Rifle Gauss Rifle Gauss Rifle [Rating: 106] Favorites ----------- Power Reinforced Deuterium Engine Engine Reinforced Deuterium Engine Power Core Fission Core Reactor Quantum Reactor Propulsion Wheel Treads Improved Medium Treads Wheel Wheel Flight Unit VTOL Module Utility Large Storage Unit Device Advanced Heat Sink Storage Large Storage Unit Processor Advanced Targeting Computer Hackware Improved System Shield Protection Centrium Medium Armor Plating Weapon Gatling Laser Energy Gun Gatling Laser Energy Cannon Cooled Particle Cannon Ballistic Gun Gauss Rifle Launcher Improved Grenade Launcher Impact Weapon Heavy Hammer Piercing Weapon Heavy Pick Build | -11 -10 -9 -9 -8 -7 -6 -6 -6 -6 -6 -5 ------- Run | Yrd Mat Mat Min Mat Fac Fac Ext Cet Arc Hub Fac Slots Evolved 10 | . . 2 . 2 2 2 . . . . 2 Power 1 | . . . . . . 1 . . . . . Propulsion 2 | . . . . 1 1 . . . . . . Utility 6 | . . 1 . 1 1 1 . . . . 2 Weapon 1 | . . 1 . . . . . . . . . Parts Attached 177 | 7 1 5 3 22 11 4 40 5 18 19 42 Power 25 | 1 . . . 4 1 1 8 . 1 3 6 Engine 10 | 1 . . . 3 . 1 3 . . 1 1 Core 14 | . . . . 1 1 . 5 . . 2 5 Reactor 1 | . . . . . . . . . 1 . . Propulsion 44 | 2 . 2 2 5 3 2 12 2 2 5 7 Treads 10 | . . . . . . . 5 2 2 1 . Leg . | . . . . . . . . . . . . Wheel 23 | 2 . 2 2 5 3 2 7 . . . . Hover . | . . . . . . . . . . . . Flight 11 | . . . . . . . . . . 4 7 Utility 60 | 2 1 1 . 5 2 1 10 2 9 8 19 Device 29 | 1 . . . 4 . 1 4 . 7 1 11 Storage 4 | 1 1 . . 1 1 . . . . . . Processor 9 | . . 1 . . 1 . 2 . 1 . 4 Hackware 7 | . . . . . . . . . . 5 2 Protection 11 | . . . . . . . 4 2 1 2 2 Artifact . | . . . . . . . . . . . . Weapon 48 | 2 . 2 1 8 5 . 10 1 6 3 10 Energy Gun 28 | 2 . 2 . 6 4 . 7 1 3 . 3 Energy Cannon 3 | . . . 1 . 1 . 1 . . . . Ballistic Gun 11 | . . . . 1 . . 2 . 3 3 2 Ballistic Cannon . | . . . . . . . . . . . . Launcher 1 | . . . . 1 . . . . . . . Special Weapon . | . . . . . . . . . . . . Impact Weapon 1 | . . . . . . . . . . . 1 Slashing Weapon . | . . . . . . . . . . . . Piercing Weapon 4 | . . . . . . . . . . . 4 Special Melee Weapon . | . . . . . . . . . . . . Unidentified Prototypes 6 | . . 1 . . 2 . . 2 1 . . Corrupted Parts 2 | . . . . . . . . . 2 . . System Corruption 9 | . . . . . . . . . 9 . . Parts Lost 42 | . . 2 . 4 2 4 6 1 . 4 19 Power 6 | . . . . 1 . 1 1 . . . 3 Propulsion 16 | . . . . 2 . 2 4 . . . 8 Utility 11 | . . . . . . 1 . 1 . 3 6 Weapon 9 | . . 2 . 1 2 . 1 . . 1 2 Highest Loss Streak 5 | . . 1 . 2 1 3 2 1 . 2 5 To Critical Strikes . | . . . . . . . . . . . . Average Slot Usage (%) 85 | . 100 89 92 95 85 69 95 90 84 82 53 Engine 6 | . 14 11 11 7 3 3 4 13 11 3 1 Core 2 | . . . . 1 1 . 6 . . 5 2 Treads 7 | . . . . . . . 17 17 13 7 . Wheel 10 | . 28 22 22 24 19 18 6 . . . . Flight 1 | . . . . . . . . . . 10 10 Device 13 | . 14 11 11 19 19 20 11 13 15 9 7 Storage 7 | . 14 11 11 9 10 13 7 6 6 4 . Processor 7 | . . 11 11 7 7 6 13 10 4 2 3 Hackware 3 | . . . . . . . . . . 11 20 Protection 3 | . . . . . . . 5 8 10 9 1 Energy Gun 13 | . 28 23 22 21 22 6 11 20 6 7 . Energy Cannon 1 | . . . 4 3 . . 4 . . . . Ballistic Gun 2 | . . . . . . . 2 . 12 4 . Naked Turns . | . . . . . . . . . . . . Heaviest Build 87 | 15 30 33 35 41 42 33 69 78 85 87 18 Greatest Support 160 | 26 26 26 26 36 48 48 113 160 160 160 16 Greatest Overweight (x) 5 | 1 1 1 1 2 3 . 3 . . . 5 Average Overweight (x) . | . . 1 1 1 1 . . . . . . Largest Inventory Capacity 15 | 8 15 15 15 15 15 15 15 15 15 15 5 Average Capacity 13 | 7 14 15 15 15 15 15 15 15 15 11 5 Most Carried 15 | 5 13 15 15 15 15 15 15 15 15 15 5 Average Carried 12 | 2 11 13 14 14 14 14 14 14 14 10 4 Final Capacity 15 | 8 15 15 15 15 15 15 15 15 15 5 5 Final Carried 15 | 5 13 15 15 14 14 15 15 15 15 5 4 Class Distribution -------------------- 37% | Scavenger-Gunner 13% | Scavenger-Skirmisher 12% | Scavenger-Tank 9% | Mutant 6% | Hacker-Mutant 6% | Scavenger-Mutant 4% | Wizard-Sprinter 3% | Hacker-Sprinter 3% | Gunner Dominant Class ---------------- Mutant | -10/Materials Mutant | -9/Materials Scavenger-Mutant | -9/Mines Scavenger-Skirmisher | -8/Materials Scavenger-Gunner | -7/Factory Scavenger-Mutant | -6/Factory Scavenger-Gunner | -6/Extension Scavenger-Gunner | -6/Cetus Scavenger-Tank | -6/Archives Scavenger-Tank | -6/Hub_04(d) Hacker-Mutant | -5/Factory Resources | -11 -10 -9 -9 -8 -7 -6 -6 -6 -6 -6 -5 ----------- Run | Yrd Mat Mat Min Mat Fac Fac Ext Cet Arc Hub Fac Matter Collected 2616 | 267 163 75 55 284 89 46 425 60 408 393 351 Remotely . | . . . . . . . . . . . . Salvage Created 7142 | 174 232 404 46 1208 475 105 1739 292 526 810 1131 Parts 339 | 13 19 25 5 56 22 8 78 8 17 37 51 Haulers Intercepted 7 | . . . . 3 2 . . . . . 2 Recyclers Shooed 8 | . . . . 1 1 1 . . . . 5 Parts Field Recycled . | . . . . . . . . . . . . Retrieved Matter . | . . . . . . . . . . . . Parts Self-Destructed . | . . . . . . . . . . . . Prevented . | . . . . . . . . . . . . Kills | -11 -10 -9 -9 -8 -7 -6 -6 -6 -6 -6 -5 ------- Run | Yrd Mat Mat Min Mat Fac Fac Ext Cet Arc Hub Fac Combat Hostiles Destroyed 94 | . 4 9 . 19 6 1 19 4 3 16 13 Melee 6 | . . . . . . . . . . . 6 Guns 58 | . 3 9 . 10 6 1 9 1 . 16 3 Cannons 11 | . . . . 3 . . 8 . . . . AOE 11 | . 1 . . 6 . . 1 . . . 3 Classes Destroyed 16 | 2 3 3 . 1 1 . 4 . . . 2 Worker 13 | . . 1 1 2 2 . . . . 4 3 Builder 19 | . 2 1 1 4 . 2 7 . . 1 1 Tunneler 7 | 4 . . . . 2 . . . . . 1 Hauler 7 | . . . . 3 2 . . . . . 2 Recycler 12 | 1 . . . 3 1 . 4 . . . 3 Mechanic 1 | . . . . . . . . . . . 1 Operator 11 | . . . . . . . 2 . 9 . . Watcher 8 | . 1 2 . 2 . . 2 1 . . . Swarmer 28 | . . 4 . 4 . . 3 . . 7 10 Grunt 38 | . 4 4 . 12 5 . 7 . . 5 1 Brawler 1 | . . . . . . . 1 . . . . Sentry 13 | . . 1 . 3 . . 3 . 3 3 . Hunter 5 | . . . . . 1 1 2 . . 1 . Programmer 2 | . . . . . . . . . . . 2 Behemoth 2 | . . . . . . . 2 . . . . Cetus Guard 4 | . . . . . . . . 4 . . . Thug 1 | . . . . . . . 1 . . . . Butcher 1 | . . . . . . . 1 . . . . Best Kill Streak 16 | 5 3 10 2 16 5 1 4 3 4 16 4 Combat Bots Only 14 | . 2 7 . 6 4 1 3 2 2 14 3 Max Kills in Single Turn 3 | 1 1 2 1 3 1 1 2 1 1 2 2 Gunslinging 1 | . . . . 1 . . . . . 1 . Exploded 3 | . 1 . . 3 . . 1 . . . 1 Melee 1 | . . . . . . . . . . . 1 Uniques/NPCs Destroyed . | . . . . . . . . . . . . Combat | -11 -10 -9 -9 -8 -7 -6 -6 -6 -6 -6 -5 -------- Run | Yrd Mat Mat Min Mat Fac Fac Ext Cet Arc Hub Fac Hostile Shots Fired 982 | . 12 41 . 92 82 79 139 20 19 247 251 Missed 342 | . 6 12 . 23 40 31 36 5 9 63 117 Damage Taken 7898 | . 54 251 . 783 469 353 1329 348 186 2059 2066 Core 1851 | . . 50 . 148 48 84 140 44 20 312 1005 Absorbed by Shields 19 | . . . . . . . 19 . . . . Redirected to Shielding 50 | . . . . . . . . . . . 50 Ignored by Resistances 2233 | . 18 75 . 226 140 112 391 93 50 544 584 Regen/Repaired (Parts) 67 | . . . . 67 . . . . . . . Core Remaining (%) 80 | 100 100 . 87 73 93 . . . . 29 . Volleys Fired 281 | 6 16 25 2 46 17 9 71 13 32 33 11 Largest 3 | 2 2 3 2 3 3 1 3 3 3 3 2 Hottest 240 | 80 80 125 101 240 240 80 234 235 224 236 88 Shots Fired 691 | 12 32 45 4 123 51 9 186 39 96 82 12 Gun 618 | 12 32 45 4 98 51 9 138 39 96 82 12 Cannon 69 | . . . . 21 . . 48 . . . . Launcher 4 | . . . . 4 . . . . . . . Special . | . . . . . . . . . . . . Kinetic 118 | . . . . 9 . . 15 . 57 31 6 Thermal 469 | . . 4 2 106 51 9 168 39 39 51 . Explosive 4 | . . . . 4 . . . . . . . Electromagnetic 100 | 12 32 41 2 4 . . 3 . . . 6 Robot Hit Streak 46 | 10 11 21 4 26 21 14 46 43 20 42 9 Robot Miss Streak 3 | . 2 1 1 2 3 1 1 2 3 1 1 Penetration Max 1 | . . . . . . . . . . 1 . Secondary Targets 18 | . . 1 . 4 2 . 1 2 . 8 . Max Gunslinging Chain 1 | . . 1 . 1 1 . 1 1 . 1 . Shots Hit Robots 578 | 10 21 37 3 93 34 9 149 35 69 70 48 Core Hits 339 | 6 12 19 2 58 30 9 84 25 35 31 28 Critical Kills . | . . . . . . . . . . . . Critical Parts Destroyed 6 | . . . . . . . 1 . 2 1 2 Critical Strikes 27 | . . 1 . 5 . . 9 . 4 3 5 Burn 18 | . . 1 . 5 . . 8 . 2 2 . Destroy 5 | . . . . . . . 1 . 2 1 1 Smash 1 | . . . . . . . . . . . 1 Impale 3 | . . . . . . . . . . . 3 Melee Attacks 46 | . . . . . . . . . . . 46 Impact 12 | . . . . . . . . . . . 12 Slashing . | . . . . . . . . . . . . Piercing 34 | . . . . . . . . . . . 34 Sneak Attacks 12 | . . . . . . . . . . . 12 Combat Hostiles . | . . . . . . . . . . . . Follow-up Attacks . | . . . . . . . . . . . . Damage Inflicted 16309 | 146 394 718 38 2262 920 249 4267 957 1553 2054 2751 Guns 11130 | 113 315 626 38 1367 920 249 2767 957 1553 2054 171 Cannons 1638 | . . . . 315 . . 1323 . . . . Explosions 1689 | 33 79 92 . 580 . . 177 . . . 728 Melee 1842 | . . . . . . . . . . . 1842 Ramming 10 | . . . . . . . . . . . 10 Kinetic 1798 | . . . . 72 . . 165 . 713 747 101 Thermal 10476 | 33 79 107 14 1571 920 249 4030 957 840 1307 369 Explosive 919 | . . . . 560 . . . . . . 359 Electromagnetic 1264 | 113 315 611 24 59 . . 72 . . . 70 Impact 781 | . . . . . . . . . . . 781 Slashing . | . . . . . . . . . . . . Piercing 1061 | . . . . . . . . . . . 1061 Highest Corruption 6 | . . 1 1 . 2 . 1 . 6 1 2 Average Corruption 1 | . . 1 1 . 1 . 1 . 3 1 1 Corruption Purged 13 | . . . . . . . 1 . 9 . 3 Corruption Blocked . | . . . . . . . . . . . . Effects 10 | . . 1 4 . 2 . . . 1 2 . Matter Fused 2 | . . . 1 . . . . . . 1 . Heat Flow Errors 3 | . . . 1 . . . . . 1 1 . Energy Discharges 1 | . . . . . 1 . . . . . . Parts Fused 1 | . . . 1 . . . . . . . . Data Loss (minor) 1 | . . . 1 . . . . . . . . Misfires 1 | . . 1 . . . . . . . . . Alerts 1 | . . . . . 1 . . . . . . Overload Shots 25 | . . . . . . . 25 . . . . Effects 2 | . . . . . . . 2 . . . . Energy Bleed 1 | . . . . . . . 1 . . . . Short Circuit 1 | . . . . . . . 1 . . . . Overflow Damage 410 | . . . . 17 . . 56 . . . 337 Projectiles 52 | . . . . . . . 52 . . . . Explosions 78 | . . . . 17 . . 4 . . . 57 Melee 280 | . . . . . . . . . . . 280 Knockbacks 2 | . . . . . . . . . . . 2 Impact 2 | . . . . . . . . . . . 2 Kinetic . | . . . . . . . . . . . . Secondary . | . . . . . . . . . . . . Self-Inflicted Damage 104 | . . . . 15 . . 48 . . . 41 Shots 3 | . . . . 1 . . 1 . . . 1 Rammed 1 | . . . . . . . . . . . 1 Targets Rammed 1 | . . . . . . . . . . . 1 Kicked . | . . . . . . . . . . . . Crushed . | . . . . . . . . . . . . Highest Temperature 624 | 72 93 232 92 285 93 16 373 198 468 624 32 Average Temperature 105 | 32 32 80 30 73 39 8 99 125 154 219 10 Received Heat Transfer 2398 | . 39 90 . 513 159 117 412 27 36 522 483 Effects 30 | . . 2 . . . . 1 . 2 25 . Shutdowns 6 | . . . . . . . . . 1 5 . Energy Bleed 4 | . . 1 . . . . 1 . . 2 . Interference 5 | . . 1 . . . . . . . 4 . Matter Decay 2 | . . . . . . . . . . 2 . Short Circuit 1 | . . . . . . . . . 1 . . Damage (minor) 1 | . . . . . . . . . . 1 . Damage (major) 9 | . . . . . . . . . . 9 . Damage (core) 2 | . . . . . . . . . . 2 . Siege Activations . | . . . . . . . . . . . . Robots Corrupted . | . . . . . . . . . . . . Combat Hostiles . | . . . . . . . . . . . . Parts Fried 7 | . 1 4 . . . . . . . . 2 Impact Corruptions 8 | . . . . . . . . . . . 8 Robots Melted 8 | . . . . . . . 2 3 3 . . Combat Hostiles 7 | . . . . . . . 1 3 3 . . Parts Melted 57 | . . . . 7 6 4 23 7 8 2 . Heat Transferred 21073 | 100 100 261 37 4076 2000 575 7401 2187 2019 2017 300 Parts Sabotaged . | . . . . . . . . . . . . Parts Stolen . | . . . . . . . . . . . . Parts Stripped . | . . . . . . . . . . . . Power Chain Reactions 6 | 1 1 1 . 1 . . 1 . . . 1 Alert | -11 -10 -9 -9 -8 -7 -6 -6 -6 -6 -6 -5 ------- Run | Yrd Mat Mat Min Mat Fac Fac Ext Cet Arc Hub Fac Peak Influence 1011 | 25 158 397 99 480 330 114 730 501 291 621 1011 Initial 355 | . 13 56 89 . 178 74 38 355 118 26 72 Average 287 | 9 78 236 84 280 189 90 356 415 182 319 468 Maximum Alert Level 3 | . . 1 . 2 1 . 3 2 1 2 3 Low Security (%) 39 | 100 100 30 100 35 80 100 14 . 51 22 17 Level 1 34 | . . 69 . 33 19 . 47 37 48 52 31 Level 2 21 | . . . . 31 . . 34 62 . 25 27 Level 3 4 | . . . . . . . 3 . . . 23 Level 4 . | . . . . . . . . . . . . Level 5 . | . . . . . . . . . . . . High Security . | . . . . . . . . . . . . Max Security . | . . . . . . . . . . . . Squads Dispatched 43 | . 1 3 . 5 4 2 8 1 . 7 12 Investigation 30 | . 1 3 . 5 2 1 6 1 . 2 9 Extermination 1 | . . . . . 1 . . . . . . Reinforcement 7 | . . . . . 1 1 1 . . 2 2 Assault 2 | . . . . . . . 1 . . . 1 Garrison 3 | . . . . . . . . . . 3 . Intercept . | . . . . . . . . . . . . Searches Triggered 3 | . . . . . . . . . . . 3 Construction Impeded 2 | . . . . . . . . . . 1 1 Haulers Reinforced . | . . . . . . . . . . . . Active Scanning Responses . | . . . . . . . . . . . . Cargo Convoy Interrupts . | . . . . . . . . . . . . Stealth | -11 -10 -9 -9 -8 -7 -6 -6 -6 -6 -6 -5 --------- Run | Yrd Mat Mat Min Mat Fac Fac Ext Cet Arc Hub Fac Distress Signals 10 | . . 1 . . . . 3 2 . 1 3 Communications Jammed . | . . . . . . . . . . . . Distress Signals . | . . . . . . . . . . . . Times Spotted 276 | . 5 12 . 27 18 6 46 11 12 37 102 Peak Tracking Total 27 | . 2 4 . 6 5 4 5 5 2 15 27 Tactical Retreats 27 | . . 2 . 1 2 . 1 . . 4 17 Traps | -11 -10 -9 -9 -8 -7 -6 -6 -6 -6 -6 -5 ------- Run | Yrd Mat Mat Min Mat Fac Fac Ext Cet Arc Hub Fac Traps Triggered 8 | . 1 . . . . . 3 . . 3 1 Indirectly . | . . . . . . . . . . . . Trap Hack Attempts . | . . . . . . . . . . . . Triggered . | . . . . . . . . . . . . Disarmed 18 | . . . . . . . 6 . . . 12 Reprogrammed . | . . . . . . . . . . . . Reused . | . . . . . . . . . . . . Traps Extracted . | . . . . . . . . . . . . Installed . | . . . . . . . . . . . . Triggered . | . . . . . . . . . . . . Objects Rigged 20 | . . 1 . . 7 . . . . . 12 Exploded 2 | . . . . . . . . . . . 2 Machines | -11 -10 -9 -9 -8 -7 -6 -6 -6 -6 -6 -5 ---------- Run | Yrd Mat Mat Min Mat Fac Fac Ext Cet Arc Hub Fac Machines Disabled 14 | . . . . 1 . . 2 . 3 1 7 Max in Single Turn 4 | . . . . 1 . . 1 . 1 1 4 Garrison Access 1 | . . . . . . . . . . . 1 Machines Repaired . | . . . . . . . . . . . . Machines Dismantled . | . . . . . . . . . . . . Machines Sabotaged 2 | . . . . . . . . . . . 2 Overloaded Fab Kills . | . . . . . . . . . . . . Hacking | -11 -10 -9 -9 -8 -7 -6 -6 -6 -6 -6 -5 --------- Run | Yrd Mat Mat Min Mat Fac Fac Ext Cet Arc Hub Fac Machines Accessed 60 | . 2 5 . 9 7 3 12 3 . 6 13 Terminals 45 | . 1 4 . 5 4 3 12 3 . 6 7 Fabricators 3 | . . . . . 2 . . . . . 1 Repair Stations 2 | . . . . 2 . . . . . . . Recycling Units 5 | . 1 . . . 1 . . . . . 3 Scanalyzers 4 | . . 1 . 2 . . . . . . 1 Garrison Access 1 | . . . . . . . . . . . 1 Total Hacks 291 | . 8 27 . 37 18 4 23 8 . 62 104 Successful 176 | . 5 20 . 27 13 2 12 3 . 31 63 Failed 115 | . 3 7 . 10 5 2 11 5 . 31 41 Catastrophic 18 | . 1 . . 2 1 . 3 2 . 3 6 Database Lockouts . | . . . . . . . . . . . . Manual 163 | . 1 13 . 18 12 2 7 . . 38 72 Terminals 223 | . 4 20 . 19 9 4 23 8 . 62 74 Fabricators 10 | . . . . . 6 . . . . . 4 Repair Stations 5 | . . . . 5 . . . . . . . Recycling Units 17 | . 4 . . . 3 . . . . . 10 Scanalyzers 29 | . . 7 . 13 . . . . . . 9 Garrison Access 7 | . . . . . . . . . . . 7 Terminal Hacks 82 | . 1 9 . 5 2 2 10 3 . 26 24 Record 5 | . . . . . . . . 2 . 3 . Part Schematic 4 | . . . . 1 . . . . . 2 1 Robot Schematic 2 | . . . . . . . 1 . . 1 . Robot Analysis 16 | . . 4 . 2 . . . . . 7 3 Prototype ID Bank 2 | . . . . . . . . . . 1 1 Open Door 8 | . . . . . . 1 6 1 . . . Open DSF 1 | . . . . . . 1 . . . . . Level Access Points 1 | . 1 . . . . . . . . . . Branch Access Points 1 | . . . . . 1 . . . . . . Emergency Access Points 1 | . . . . . . . . . . 1 . Terminal Index 4 | . . . . 1 . . . . . 1 2 Alert Level 1 | . . . . . . . . . . 1 . Unreport Threat 4 | . . 1 . . . . . . . 3 . Disarm Traps 3 | . . . . . . . 1 . . . 2 Dispatch Records 4 | . . . . . . . . . . 1 3 Patrol Status 1 | . . . . . . . . . . . 1 Recall Investigation 5 | . . . . 1 . . . . . 1 3 Recall Reinforcements 2 | . . . . . . . . . . . 2 Hauler Manifests 3 | . . 1 . . . . . . . . 2 Registered Components 4 | . . 1 . . 1 . . . . 1 1 Zone Layout 10 | . . 2 . . . . 2 . . 3 3 Fabricator Hacks 2 | . . . . . 1 . . . . . 1 Network Status 2 | . . . . . 1 . . . . . 1 Repair Station Hacks 5 | . . . . 5 . . . . . . . Scan Component 3 | . . . . 3 . . . . . . . Repair 2 | . . . . 2 . . . . . . . Recycling Unit Hacks 8 | . 3 . . . 1 . . . . . 4 Retrieve Components 8 | . 3 . . . 1 . . . . . 4 Scanalyzer 24 | . . 6 . 12 . . . . . . 6 Insert Component 12 | . . 3 . 6 . . . . . . 3 Analyze 12 | . . 3 . 6 . . . . . . 3 Garrison Access Hacks . | . . . . . . . . . . . . Unauthorized Hacks 55 | . 1 5 . 5 9 . 2 . . 5 28 Terminals 35 | . . 4 . 4 4 . 2 . . 5 16 Track 2 | . . . . . . . . . . . 2 Botnet 20 | . . 3 . 3 3 . 2 . . 3 6 Detonate 8 | . . 1 . . 1 . . . . 2 4 Disrupt 1 | . . . . . . . . . . . 1 Sabotage 3 | . . . . . . . . . . . 3 Search 1 | . . . . 1 . . . . . . . Fabricators 5 | . . . . . 4 . . . . . 1 Prioritize 2 | . . . . . 2 . . . . . . Liberate 3 | . . . . . 2 . . . . . 1 Repair Stations . | . . . . . . . . . . . . Recycling Units 6 | . 1 . . . 1 . . . . . 4 Reject 3 | . . . . . 1 . . . . . 2 Recyclers 2 | . 1 . . . . . . . . . 1 Mask 1 | . . . . . . . . . . . 1 Scanalyzers 3 | . . 1 . 1 . . . . . . 1 Extract 3 | . . 1 . 1 . . . . . . 1 Garrison Access 6 | . . . . . . . . . . . 6 Broadcast 1 | . . . . . . . . . . . 1 Decoy 1 | . . . . . . . . . . . 1 Redirect 1 | . . . . . . . . . . . 1 Reprogram 1 | . . . . . . . . . . . 1 Intercept 1 | . . . . . . . . . . . 1 Watchers 1 | . . . . . . . . . . . 1 Data Cores Recovered . | . . . . . . . . . . . . Used . | . . . . . . . . . . . . Hacking Detections 51 | . 2 5 . 8 7 1 8 3 . 6 11 Full Trace Events 23 | . 1 4 . 4 2 1 6 1 . 1 3 Feedback Events 3 | . . 1 . . . . 1 . . . 1 Corruption 2 | . . 1 . . . . 1 . . . . Hackware Fried 1 | . . . . . . . . . . . 1 Feedback Blocked . | . . . . . . . . . . . . Robot Schematics Acquired 2 | . . . . . . . 1 . . 1 . Robots Built . | . . . . . . . . . . . . Authchips . | . . . . . . . . . . . . Time . | . . . . . . . . . . . . Total Robot Build Rating . | . . . . . . . . . . . . Part Schematics Acquired 19 | . . 4 . 7 . . . . . 2 6 Parts Built . | . . . . . . . . . . . . Authchips . | . . . . . . . . . . . . Time . | . . . . . . . . . . . . Total Part Build Rating . | . . . . . . . . . . . . Parts Repaired 2 | . . . . 2 . . . . . . . Time 76 | . . . . 76 . . . . . . . Parts Recycled . | . . . . . . . . . . . . Recycled Matter . | . . . . . . . . . . . . Retrieved Matter . | . . . . . . . . . . . . Retrieved Components 15 | . . . . . 10 . . . . . 5 Parts Scanalyzed 11 | . . 3 . 5 . . . . . . 3 Part Schematics Acquired 10 | . . 3 . 4 . . . . . . 3 Parts Damaged . | . . . . . . . . . . . . Bothacking | -11 -10 -9 -9 -8 -7 -6 -6 -6 -6 -6 -5 ------------ Run | Yrd Mat Mat Min Mat Fac Fac Ext Cet Arc Hub Fac Used RIF Installer . | . . . . . . . . . . . . Robots Hacked . | . . . . . . . . . . . . Non-combat . | . . . . . . . . . . . . Combat . | . . . . . . . . . . . . Robot Hacks Applied . | . . . . . . . . . . . . Relay Couplers Released 2 | . . . . . . . . . . . 2 Machine Destruction 2 | . . . . . . . . . . . 2 Fabnet Peak Effective % . | . . . . . . . . . . . . Robots Rewired 14 | . . . . . . 1 13 . . . . Allies Hacked . | . . . . . . . . . . . . Hacks Repelled . | . . . . . . . . . . . . Allies | -11 -10 -9 -9 -8 -7 -6 -6 -6 -6 -6 -5 -------- Run | Yrd Mat Mat Min Mat Fac Fac Ext Cet Arc Hub Fac Total Allies 27 | . . . . . 3 1 22 . . . 1 Largest Group 9 | . . . . . 3 . 9 6 3 1 1 Highest-Rated Group 396 | . . . . . 48 . 396 299 198 29 41 Highest-Rated Ally 159 | . . . . . 16 . 159 153 130 29 41 Total Orders . | . . . . . . . . . . . . Ally Attacks 276 | . . . . . 12 . 225 30 5 . 4 Total Damage 5772 | . . . . . 166 . 4174 914 77 . 441 Kills 43 | . . . . . . . 34 6 1 . 2 Allies Corrupted . | . . . . . . . . . . . . Allies Melted 1 | . . . . . 1 . . . . . . Intel | -11 -10 -9 -9 -8 -7 -6 -6 -6 -6 -6 -5 ------- Run | Yrd Mat Mat Min Mat Fac Fac Ext Cet Arc Hub Fac Robot Analysis Total 15 | . . 4 . 2 . . . . . 6 3 Derelict Logs Recovered 1 | . . . 1 . . . . . . . . Drone Launches . | . . . . . . . . . . . . Drone Recoveries . | . . . . . . . . . . . . Exploration | -11 -10 -9 -9 -8 -7 -6 -6 -6 -6 -6 -5 ------------- Run | Yrd Mat Mat Min Mat Fac Fac Ext Cet Arc Hub Fac Turns Passed 6832 | 92 290 229 459 781 701 125 1594 592 725 300 944 Spaces Moved 5687 | 63 215 148 464 481 579 108 785 321 268 372 1883 Core 33 | 5 . . . . . . . . . . 28 Treads 1174 | . . . . . . . 545 321 268 40 . Legs . | . . . . . . . . . . . . Wheels 2293 | 58 215 148 464 481 579 108 240 . . . . Hover . | . . . . . . . . . . . . Flight 2187 | . . . . . . . . . . 332 1855 Fastest Speed 26 | 50 90 95 95 95 86 86 86 160 160 26 26 Average Speed 86 | 87 104 99 95 98 102 86 141 160 160 40 36 Slowest Speed 355 | 100 105 105 105 110 125 90 240 160 160 160 355 Overloaded Moves . | . . . . . . . . . . . . Propulsion Burnouts . | . . . . . . . . . . . . Robots Hopped 23 | . . . . . . . . . . 6 17 Cave-ins Triggered . | . . . . . . . . . . . . Exploration Rate (%) 46 | 5 31 21 88 44 16 4 86 82 88 42 46 Regions Visited 11 Branch Regions 5 Pre-discovered Areas 2 | . . . 2 . . . . . . . . Known Exits Taken 1 | . 1 . . . . . . . . . . Unknown Exits Taken 10 | 1 . 1 1 1 1 1 1 1 1 1 . Scrap Searched 2 | . . . 2 . . . . . . . . Spaces Dug 4 | . . . . . . . . . . . 4 Terrain Destroyed 140 | . 5 3 . 32 . . 15 . 6 2 77 Melee 4 | . . . . . . . . . . . 4 Projectile 19 | . . . . . . . 11 . 6 2 . AOE 117 | . 5 3 . 32 . . 4 . . . 73 Terrain Rammed . | . . . . . . . . . . . . Walls Destroyed . | . . . . . . . . . . . . Machines Disabled . | . . . . . . . . . . . . Actions | -11 -10 -9 -9 -8 -7 -6 -6 -6 -6 -6 -5 --------- Run | Yrd Mat Mat Min Mat Fac Fac Ext Cet Arc Hub Fac Total 6970 | 87 249 188 480 696 639 127 1125 372 496 457 2054 Wait 342 | . 8 . 1 100 10 . 61 12 136 11 3 Move 5632 | 62 214 147 463 480 578 107 784 320 267 359 1851 Hop 21 | . . . . . . . . . . 6 15 Pick Up 210 | 12 9 8 6 27 12 4 41 10 24 11 46 Fast Attach . | . . . . . . . . . . . . Attach 135 | 7 . 3 2 16 7 3 25 4 12 18 38 Detach 10 | . . . . . . . 1 . . 1 8 Swap 42 | . 1 2 1 6 4 1 15 1 6 1 4 Drop 148 | . 1 3 5 21 11 . 28 12 19 17 31 Fire 281 | 6 16 25 2 46 17 9 71 13 32 33 11 Melee 46 | . . . . . . . . . . . 46 Ram 1 | . . . . . . . . . . . 1 Kick . | . . . . . . . . . . . . Crush . | . . . . . . . . . . . . Escape Stasis 16 | . . . . . . . 16 . . . . Rewire 86 | . . . . . . 3 83 . . . . Trap . | . . . . . . . . . . . . Miscellaneous . | . . . . . . . . . . . . Route ------- -11/Scrapyard -10/Materials (discovered 3 exits: *Mat x3) -9/Materials -9/Mines (discovered 2 exits: *Mat x2) -8/Materials (discovered 2 exits: *Fac x2) -7/Factory (discovered 5 exits: *Fac / Sto x2 / Low x2) -6/Factory -6/Extension (discovered 3 exits: *Fac x2 / *Cet) -6/Cetus (discovered 2 exits: *Fac / *Arc) -6/Archives (discovered 3 exits: *Fac / *Hub x2) -6/Hub_04(d) (discovered 2 exits: *Fac x2) -5/Factory (discovered 4 exits: *Fac x2 / *Upp x2) History --------- Turn | Location | Event 25 | -11/Scrapyard | Discovered new exit (range 15) 93 | -11/Scrapyard | Entered Materials 250 | -10/Materials | Identified exit to Materials 300 | -10/Materials | Build established: Mutant 383 | -10/Materials | Entered another Materials area 383 | -9/Materials | Evolved 2 slots: Utility x1, Weapon x1 483 | -9/Materials | Destroyed 7 combat bots 569 | -9/Materials | Discovered new exit (range 10) 612 | -9/Materials | Entered Mines 837 | -9/Mines | Learned location of Storage (-7) 878 | -9/Mines | Discovered new exit (range 15) 985 | -9/Mines | Discovered new exit (range 13) 1071 | -9/Mines | Entered Materials 1071 | -8/Materials | Evolved 2 slots: Propulsion x1, Utility x1 1228 | -8/Materials | Build established: Scavenger-Skirmisher 1491 | -8/Materials | Discovered new exit (range 7) 1644 | -8/Materials | Repaired Cooling System 1709 | -8/Materials | Discovered new exit (range 12) 1783 | -8/Materials | Repaired Gatling Laser 1852 | -8/Materials | Entered Factory 1852 | -7/Factory | Evolved 2 slots: Propulsion x1, Utility x1 2171 | -7/Factory | Build established: Scavenger-Gunner 2175 | -7/Factory | Identified exit to Storage 2175 | -7/Factory | Identified exit to Lower Caves 2202 | -7/Factory | Lost 3 allies 2538 | -7/Factory | Discovered new exit (range 13) 2553 | -7/Factory | Entered another Factory area 2553 | -6/Factory | Evolved 2 slots: Power x1, Utility x1 2674 | -6/Factory | Discovered new exit (range 6) 2678 | -6/Factory | Entered Extension 2705 | -6/Extension | Lost 3 parts (1p1n1u) 2753 | -6/Extension | Disrupted transfer network 2954 | -6/Extension | Rescued a captive Derelict 3050 | -6/Extension | Rescued a captive Derelict 3051 | -6/Extension | Rescued a captive Derelict 3113 | -6/Extension | Rescued a captive Derelict 3193 | -6/Extension | Spotted B-75 Beast 3204 | -6/Extension | Spotted B-75 Beast 3211 | -6/Extension | Destroyed B-75 Beast 3246 | -6/Extension | Destroyed B-75 Beast 3256 | -6/Extension | Lost 6 allies 3701 | -6/Extension | Discovered new exit (range 3) 3798 | -6/Extension | Rescued a captive Derelict 3799 | -6/Extension | Rescued a captive Derelict 3819 | -6/Extension | Rescued a captive Derelict 3827 | -6/Extension | Rescued a captive Derelict 4073 | -6/Extension | Rescued A7 4078 | -6/Extension | First assault squad dispatched 4180 | -6/Extension | Lost 3 allies 4230 | -6/Extension | Discovered new exit (range 10) 4232 | -6/Extension | Discovered new exit (range 6) 4272 | -6/Extension | Entered Cetus 4272 | -6/Cetus | Accompanied by 6 allies (A7) 4277 | -6/Cetus | Acquired a Cetus Manufacturing Module code from A7 4294 | -6/Cetus | Spotted Cetus Guard 4294 | -6/Cetus | Spotted Cetus Guard 4299 | -6/Cetus | Destroyed Cetus Guard 4299 | -6/Cetus | Spotted Cetus Guard 4301 | -6/Cetus | Allies destroyed Cetus Guard 4301 | -6/Cetus | Spotted Cetus Guard 4303 | -6/Cetus | Allies destroyed Cetus Guard 4309 | -6/Cetus | Destroyed Cetus Guard 4480 | -6/Cetus | Escorted A7 to Cetus Mainframe 4560 | -6/Cetus | Discovered new exit (range 16) 4588 | -6/Cetus | Spotted Cetus Guard 4589 | -6/Cetus | Spotted Cetus Guard 4592 | -6/Cetus | Spotted Cetus Guard 4601 | -6/Cetus | Destroyed Cetus Guard 4602 | -6/Cetus | Allies destroyed Cetus Guard 4602 | -6/Cetus | Spotted Cetus Guard 4610 | -6/Cetus | Destroyed Cetus Guard 4614 | -6/Cetus | Allies destroyed Cetus Guard 4620 | -6/Cetus | Discovered new exit (range 15) 4628 | -6/Cetus | Met Revision 17 4636 | -6/Cetus | Lost 3 allies 4864 | -6/Cetus | Entered Archives 4864 | -6/Archives | Accompanied by 3 allies (A7) 4869 | -6/Archives | Received a hacking code to weaken MAIN.C 4942 | -6/Archives | Build established: Scavenger-Tank 4981 | -6/Archives | Discovered new exit (range 16) 5017 | -6/Archives | Discovered new exit (range 16) 5113 | -6/Archives | Unable to access archive contents 5148 | -6/Archives | Discovered new exit (range 16) 5589 | -6/Archives | Entered Hub_04(d) 5589 | -6/Hub_04(d) | Accompanied by 1 ally 5638 | -6/Hub_04(d) | Core integrity fell below 50% 5642 | -6/Hub_04(d) | Garrison activated, responded to threat 5719 | -6/Hub_04(d) | Destroyed 14 combat bots 5864 | -6/Hub_04(d) | Discovered new exit (range 11) 5876 | -6/Hub_04(d) | Discovered new exit (range 16) 5889 | -6/Hub_04(d) | Entered Factory 5889 | -5/Factory | Evolved 2 slots: Utility x2 5965 | -5/Factory | Imp. Hacking Suite fried by hacking feedback 5979 | -5/Factory | Discovered new exit (range 3) 6100 | -5/Factory | Lost 3 parts (1p1n1u) 6172 | -5/Factory | Lost 4 parts (3n1w) 6189 | -5/Factory | Search patrols dispatched 6302 | -5/Factory | Discovered new exit (range 14) 6399 | -5/Factory | Spotted B-75 Beast 6489 | -5/Factory | Search patrols dispatched 6492 | -5/Factory | Discovered new exit (range 15) 6497 | -5/Factory | Identified exit to Factory 6504 | -5/Factory | Discovered exit to Factory (range 5) 6599 | -5/Factory | Identified exit to Upper Caves 6604 | -5/Factory | Core integrity fell below 50% 6686 | -5/Factory | Lost 5 parts (2n2u1w) 6789 | -5/Factory | Search patrols dispatched 6825 | -5/Factory | Core integrity fell below 20% 6833 | -5/Factory | Destroyed by G-67 Veteran with Field Laser Last Messages --------------- 06810_ U-05 Engineer lays Concrete. 06811_ K-01 Serf collects debris. 06814_ U-05 Engineer builds a Wall. 06814_ K-01 Serf cleans the Fabricator. 06817_ S-27 Virus destroyed. 06817_ U-05 Engineer builds a Wall. 06819_ S-27 Virus destroyed. 06822_ C-30 ARC bursts open, deploying its payload. 06822_ G-67 Veteran unfolds itself. 06822_ G-50 Soldier unfolds itself. 06823_ >> BROADCAST: Garrison Access F003 dispatching Patrol squad: C-30 ARC. 06827_ R-10 Processor collects VTOL Module. 06829_ K-01 Serf collects debris. 06829_ G-50 Soldier suffers critical hit (Impale). 06831_ R-10 Processor collects VTOL Module. 06833_ G-50 Soldier suffers critical hit (Impale). Map ----- +----------------------------------------------------+ | ?????????????????????????????????????????????????? | | ?????????????????????????????????????????????????? | | ?????????????????????????????????????????????????? | | ?????????????????????????????????????????????????? | | ?????????????????????????????????????????????????? | | ?????????????????????????????????????????????????? | | ?????????????????????????????????????????????????? | | ?????????????????????????????????????????????????? | | ?????????????????????????????????????????????????? | | ?????????????????????????????????????????????????? | | ????????????????????????? ???????????????????????? | | ????????????????????????? ???????????????????????? | | ?????????????????????????g???????????????????????? | | ?????????????????????????k???????????????????????? | | ????????????????????????? ???????????????????????? | | ????????????????????????? ???????????????????????? | | ????????????????????????? ???????????????????????? | | ??????????????????# #??????????????????????? | | ######?????????????+#???#%#??????????????????????? | | ######??????? R ???# #??????????????????????? | | """"######?????? """"??#g#??????????????????????? | | ##????# "" F"?# #?????????????????????"" | | [##????# "" "" R ?R?????????????????? | | ##????# s#g#???????????????????? | | ##????# ugg##?????????????????? | | ##????# #@##?????????????????? " | | ##????# #g##????????????w????? "R | | ###???########??#g#???????????????????! "" | | ###?????????????#R#??????????????????? | | "##?????????????#k#???################/#/# | | "##?????????????# #???# / # | | "##?#####?????### ###?# """ """ # # | | "##?#####?????# k ! #?# """ """ R # # | | / """# ? ??#### ### """ """ / # | | # """ "/% u + w # # | | # """ ##### ### """ # # | | # """ ##??# #?# """ # # | | + "" ##??###+###?# """ # # | | # "" !!!##????? ????# "" # # | | # !!]##????? ????# S"" # # | | % # ? !! ##????? ????# "" # + | | # #####???????# # # | | ############### ?????############## # | | # # ?????????????????## # | | + # ?????????????????## | | # ##?????????????????## | | # [ ##?????????????????## | | # ##?????????????????## """" | | # ##?????????????????## """" | | ################??????????######### """" | +----------------------------------------------------+ Best States ------------- Heat Dissipation 75 Coolant Potential 65 Energy Generation 39 Energy Capacity 670 Matter Stores 300 Matter Capacity 300 Sight Range 16 Robot Scan Range 15 Terrain Scan Range 16 Terrain Scan Density 210 EM Shielding 3 Armor Coverage 600 Resistance: KI 20 Resistance: TH 20 Resistance: EX 20 Resistance: EM 20 Resistance: I 20 Resistance: S 20 Resistance: P 20 Utility Shielding 66 Evasion (%) 74 Targeting Accuracy 24 Target Analysis 6 Recoil Reduction 4 Offensive Hacking 24 Defensive Hacking 48 Item Schematics ----------------- Wheel | -9/Materials | Scanalyzed Lrg. Storage Unit | -9/Materials | Scanalyzed Lgt. Ion Engine | -9/Materials | Scanalyzed Visual Processing Unit | -9/Materials | Extracted Adv. Targeting Computer | -8/Materials | Scanalyzed Terrain Scan Processor | -8/Materials | Scanalyzed Lgt. Armor Plating | -8/Materials | Scanalyzed Deuterium Engine | -8/Materials | Extracted System Shield | -8/Materials | Extracted Hacking Suite | -8/Materials | Hacked System Restoration Module | -8/Materials | Scanalyzed Imp. Hacking Suite | -6/Hub_04(d) | Hacked Imp. System Shield | -6/Hub_04(d) | Hacked Antimissile System | -5/Factory | Hacked Imp. Dynamic Insulation System | -5/Factory | Scanalyzed Imp. Utility Shielding | -5/Factory | Scanalyzed Tesla Rifle | -5/Factory | Scanalyzed Com. Matter Pod | -5/Factory | Extracted Imp. Gravmag System | -5/Factory | Extracted Robot Schematics ------------------ G-50 Soldier | -6/Extension | Hacked H-66 Slayer | -6/Hub_04(d) | Hacked Fabricated ------------ Nothing Alien Tech Used ----------------- None Achievements -------------- None Challenges ------------ None Game ------ Seed LightDiametricInsulator Manual? 0 Play Time 01:46:03 Cumulative 347.8 hours Start 2024.05.31 @ 20:24:34 End 2024.05.31 @ 22:09:40 Sessions 1 Manual Loads 0 Difficulty Adventurer Special Mode None Game No. 54 Rogue 0 Adventurer 54 Explorer 0 Win Type - Total 3 Types 2/0/0/1/0/0/0/0/0 Lore% 46 Gallery% 73 Achievement% 61 Wizard Run 0 Options --------- Layout 2 ASCII 0 Keyboard 0 Movement Mouse Keybinds 0 Fullscreen 1 Font 24/Smallcaps Map View 50x49 Zoom Use 1% Tactical HUD 1 Map Filters NONE Filters NONE Steam 1 RUN: 7fe93e88-c236-44f6-bdf7-f52219bd44f7